lending/lending_fUSD_20241120
["ID","MTS","AMOUNT","RATE_DAILY","PERIOD"]
[342806516,1732143144595,-526.48,0.00057808,120]
[342806517,1732143144604,-1791.8,0.00057808,120]
[342806518,1732143144614,-500.0,0.00057808,120]
[342806519,1732143144623,-500.0,0.00057808,120]
[342806520,1732143144632,-500.0,0.00057808,120]
[342806521,1732143144641,-500.0,0.00057808,120]
[342806522,1732143144650,-764.29,0.00057808,120]
[342806523,1732143144659,-937.69,0.00057808,120]
[342806524,1732143144668,-830.14,0.00057808,120]
[342806525,1732143144678,-500.0,0.00057808,58]
[342806526,1732143144687,-500.0,0.00057808,120]
[342806527,1732143144697,-1926.82,0.00057808,120]
[342806528,1732143144707,-151.0,0.00057808,120]
[342806529,1732143144716,-513.97,0.00057808,120]
[342806530,1732143144726,-500.0,0.00057808,120]
[342806531,1732143144736,-190.295934,0.00057808,120]
[342806532,1732143144745,-1258.94,0.00057808,120]
[342806533,1732143144754,-615.91,0.00057808,120]
[342806534,1732143144763,-739.53,0.00057808,120]
[342806535,1732143144772,-2364.09,0.00057808,120]
[342806536,1732143144782,-500.0,0.00057808,120]
[342806537,1732143144791,-1516.8,0.00057808,120]
[342806538,1732143144800,-644.03,0.00057808,120]
[342806539,1732143144809,-1222.69,0.00057808,120]
[342806540,1732143144818,-2792.61,0.00057808,120]
[342806541,1732143144828,-689.07,0.00057808,120]
[342806542,1732143144837,-151.0,0.00057808,120]
[342806543,1732143144847,-598.66,0.00057808,120]
[342806544,1732143144856,-696.8,0.00057808,120]
[342806545,1732143144866,-517.71,0.00057808,120]
[342806546,1732143144875,-670.6,0.00057808,120]
[342806547,1732143144886,-1622.41,0.00057808,120]
[342806548,1732143144896,-337.56314774,0.00057808,120]
[342806549,1732143144910,-732.47,0.00057808,120]
[342806550,1732143144920,-500.0,0.00057808,120]
[342806551,1732143144930,-500.0,0.00057808,120]
[342806552,1732143144940,-3752.95,0.00057808,120]
[342806553,1732143144952,-694.86,0.00057808,120]
[342806554,1732143144962,-527.72,0.00057808,120]
[342806555,1732143144972,-500.0,0.00057808,120]
[342806556,1732143144983,-2754.45,0.00057808,120]
[342806557,1732143144993,-500.0,0.00057808,120]
[342806558,1732143145003,-500.0,0.00057808,60]
[342806559,1732143145012,-1552.42,0.00057808,120]
[342806560,1732143145021,-777.0,0.00057808,120]
[342806561,1732143145031,-750.37,0.00057808,120]
[342806562,1732143145041,-586.88,0.00057808,120]
[342806563,1732143145050,-546.79,0.00057808,120]
[342806564,1732143145059,-1410.35,0.00057808,120]
[342806565,1732143145069,-622.81,0.00057808,120]
[342806566,1732143145079,-283.13866162,0.00057808,120]
[342806567,1732143145088,-1078.42,0.00057808,120]
[342806568,1732143145098,-2348.91,0.00057808,120]
[342806569,1732143145108,-1803.88,0.00057808,120]
[342806570,1732143145118,-875.42,0.00057808,120]
[342806571,1732143145127,-908.45,0.00057808,120]
[342806572,1732143145136,-1745.98,0.00057808,120]
[342806573,1732143145146,-643.69,0.00057808,120]
[342806574,1732143145155,-659.6,0.00057808,120]
[342806575,1732143145164,-500.0,0.00057808,120]
[342806576,1732143145174,-1212.54,0.00057808,120]
[342806577,1732143145183,-2042.25,0.00057808,120]
[342806578,1732143145193,-828.06,0.00057808,120]
[342806579,1732143145203,-646.63,0.00057808,120]
[342806580,1732143145212,-806.31,0.00057808,120]
[342806581,1732143145223,-500.0,0.00057808,120]
[342806582,1732143145233,-1287.88,0.00057808,120]
[342806583,1732143145242,-1410.77,0.00057808,120]
[342806584,1732143145252,-500.0,0.00057808,120]
[342806585,1732143145261,-640.83503474,0.00057808,120]
[342806586,1732143145271,-623.91,0.00057808,120]
[342806587,1732143145280,-228.273339,0.00057808,120]
[342806588,1732143145289,-512.20766056,0.00057808,120]
[342806589,1732143145299,-1000.52,0.00057808,120]
[342806590,1732143145308,-766.21,0.00057808,120]
[342806591,1732143145318,-228.273339,0.00057808,120]
[342806592,1732143145328,-500.0,0.00057808,120]
[342806593,1732143145337,-1013.49,0.00057808,120]
[342806594,1732143145347,-500.0,0.00057808,120]
[342806595,1732143145356,-811.56,0.00057808,120]
[342806596,1732143145365,-500.0,0.00057808,120]
[342806597,1732143145376,-3361.2,0.00057808,120]
[342806598,1732143145385,-151.0,0.00057808,120]
[342806599,1732143145394,-1185.33,0.00057808,120]
[342806600,1732143145403,-633.81,0.00057808,120]
[342806601,1732143145413,-244.673666,0.00057808,120]
[342806602,1732143145422,-838.48,0.00057808,120]
[342806603,1732143145431,-1382.6,0.00057808,120]
[342806604,1732143145441,-244.673666,0.00057808,120]
[342806605,1732143145451,-500.0,0.00057808,120]
[342806606,1732143145461,-2198.56,0.00057808,120]
[342806607,1732143145470,-500.0,0.00057808,120]
[342806608,1732143145480,-658.16,0.00057808,120]
[342806609,1732143145490,-500.0,0.00057808,120]
[342806610,1732143145499,-500.0,0.00057808,120]
[342806611,1732143145509,-581.06,0.00057808,120]
[342806612,1732143145518,-500.0,0.00057808,120]
[342806613,1732143145528,-151.0,0.00057808,120]
[342806614,1732143145538,-313.14941799,0.00057808,120]
[342806615,1732143145547,-843.03,0.00057808,120]
[342806616,1732143145556,-665.72,0.00057808,120]
[342806617,1732143145566,-789.82,0.00057808,120]
[342806618,1732143145575,-773.4,0.00057808,120]
[342806619,1732143145585,-660.24,0.00057808,120]
[342806620,1732143145594,-500.0,0.00057808,120]
[342806621,1732143145604,-504.35,0.00057808,120]
[342806622,1732143145613,-151.0,0.00057808,120]
[342806623,1732143145623,-2411.2,0.00057808,120]
[342806624,1732143145633,-3997.56,0.00057808,120]
[342806625,1732143145642,-500.0,0.00057808,120]
[342806626,1732143145651,-151.0,0.00057808,120]
[342806627,1732143145661,-500.0,0.00057808,120]
[342806628,1732143145670,-151.0,0.00057808,7]
[342806629,1732143145679,-500.0,0.00057808,120]
[342806630,1732143145689,-559.66,0.00057808,120]
[342806631,1732143145700,-1755.1,0.00057808,120]
[342806632,1732143145709,-509.773887,0.00057808,120]
[342806633,1732143145719,-1021.42,0.00057808,120]
[342806634,1732143145728,-968.59,0.00057808,120]
[342806635,1732143145738,-747.74,0.00057808,120]
[342806636,1732143145749,-151.0,0.00057808,120]
[342806637,1732143145758,-500.0,0.00057808,120]
[342806638,1732143145768,-650.26,0.00057808,120]
[342806639,1732143145777,-552.66,0.00057808,120]
[342806640,1732143145788,-528.53,0.00057808,120]
[342806641,1732143145799,-661.12,0.00057808,120]
[342806642,1732143145810,-4504.33,0.00057808,120]
[342806643,1732143145820,-500.0,0.00057808,120]
[342806644,1732143145831,-1414.7,0.00057808,120]
[342806645,1732143145841,-500.0,0.00057808,120]
[342806646,1732143145851,-1839.1,0.00057808,20]
[342806647,1732143145861,-600.15,0.00057808,120]
[342806648,1732143145871,-226.403162,0.00057808,120]
[342806649,1732143145881,-500.0,0.00057808,120]
[342806650,1732143145891,-639.71,0.00057808,120]
[342806651,1732143145902,-226.403162,0.00057808,120]
[342806652,1732143145913,-500.0,0.00057808,120]
[342806653,1732143145923,-500.0,0.00057808,120]
[342806654,1732143145935,-1685.02,0.00057808,120]
[342806655,1732143145947,-500.0,0.00057808,120]
[342806656,1732143145957,-643.92,0.00057808,120]
[342806657,1732143145967,-500.0,0.00057808,120]
[342806658,1732143145978,-503.41,0.00057808,120]
[342806659,1732143145988,-1838.85,0.00057808,120]
[342806660,1732143145999,-777.36,0.00057808,120]
[342806661,1732143146009,-1088.52,0.00057808,120]
[342806662,1732143146019,-3963.88,0.00057808,120]
[342806663,1732143146029,-500.0,0.00057808,120]
[342806664,1732143146041,-439.698091,0.00057808,120]
[342806665,1732143146051,-439.698091,0.00057808,120]
[342806666,1732143146061,-508.93,0.00057808,120]
[342806667,1732143146071,-500.0,0.00057808,120]
[342806668,1732143146080,-500.0,0.00057808,120]
[342806669,1732143146090,-522.18,0.00057808,120]
[342806670,1732143146100,-674.72,0.00057808,120]
[342806671,1732143146110,-151.0,0.00057808,120]
[342806672,1732143146120,-1573.1,0.00057808,120]
[342806673,1732143146130,-500.0,0.00057808,120]
[342806674,1732143146140,-1344.45,0.00057808,120]
[342806675,1732143146151,-695.34,0.00057808,120]
[342806676,1732143146161,-530.39,0.00057808,120]
[342806677,1732143146171,-5030.76,0.00057808,120]
[342806678,1732143146181,-993.23,0.00057808,120]
[342806679,1732143146191,-1007.71,0.00057808,120]
[342806680,1732143146204,-845.57,0.00057808,120]
[342806681,1732143146213,-1508.05,0.00057808,120]
[342806682,1732143146223,-1000.0,0.00057808,30]
[342806683,1732143146232,-500.0,0.00057808,120]
[342806684,1732143146243,-1949.27,0.00057808,120]
[342806685,1732143146253,-635.4,0.00057808,120]
[342806686,1732143146262,-3671.8,0.00057808,120]
[342806687,1732143146272,-873.15,0.00057808,120]
[342806688,1732143146281,-422.63747755,0.00057808,120]
[342806689,1732143146291,-1275.78,0.00057808,120]
[342806690,1732143146301,-500.0,0.00057808,120]
[342806691,1732143146310,-1300.6,0.00057808,120]
[342806692,1732143146319,-500.0,0.00057808,120]
[342806693,1732143146329,-1078.43,0.00057808,120]
[342806694,1732143146338,-729.83,0.00057808,120]
[342806695,1732143146348,-1015.57,0.00057808,120]
[342806696,1732143146357,-562.04,0.00057808,120]
[342806697,1732143146367,-2596.1,0.00057808,120]
[342806698,1732143146377,-2222.66,0.00057808,120]
[342806699,1732143146387,-1080.64,0.00057808,120]
[342806700,1732143146396,-852.14,0.00057808,120]
[342806701,1732143146406,-569.32,0.00057808,120]
[342806702,1732143146415,-500.0,0.00057808,120]
[342806703,1732143146424,-509.24,0.00057808,120]
[342806704,1732143146434,-1411.12131,0.00057808,120]
[342806705,1732143146443,-700.0,0.00057808,120]
[342806706,1732143146458,-928.5,0.00057808,120]
[342806707,1732143146467,-1411.12131,0.00057808,120]
[342806708,1732143146476,-1806.6,0.00057808,120]
[342806709,1732143146485,-1129.79,0.00057808,120]
[342806710,1732143146495,-500.0,0.00057808,120]
[342806711,1732143146505,-500.0,0.00057808,120]
[342806712,1732143146514,-385.08245427,0.00057808,120]
[342806713,1732143146524,-2425.19,0.00057808,120]
[342806714,1732143146534,-625.0,0.00057808,120]
[342806715,1732143146543,-500.0,0.00057808,120]
[342806716,1732143146553,-1018.93,0.00057808,120]
[342806717,1732143146563,-2073.72,0.00057808,120]
[342806718,1732143146572,-500.0,0.00057808,120]
[342806719,1732143146582,-1011.93,0.00057808,120]
[342806720,1732143146592,-1257.41,0.00057808,120]
[342806721,1732143146602,-1328.54,0.00057808,120]
[342806722,1732143146611,-893.2,0.00057808,120]
[342806723,1732143146621,-878.56,0.00057808,120]
[342806724,1732143146630,-1107.33,0.00057808,120]
[342806725,1732143146640,-1954.12,0.00057808,120]
[342806726,1732143146649,-5394.68,0.00057808,120]
[342806727,1732143146659,-500.0,0.00057808,120]
[342806728,1732143146669,-500.0,0.00057808,120]
[342806729,1732143146679,-543.1,0.00057808,120]
[342806730,1732143146689,-965.73,0.00057808,120]
[342806731,1732143146703,-500.0,0.00057808,120]
[342806732,1732143146712,-500.0,0.00057808,120]
[342806733,1732143146722,-500.0,0.00057808,120]
[342806734,1732143146731,-1308.091702,0.00057808,120]
[342806735,1732143146741,-1317.76,0.00057808,120]
[342806736,1732143146750,-1308.091702,0.00057808,120]
[342806737,1732143146761,-1510.86,0.00057808,120]
[342806738,1732143146771,-594.46,0.00057808,120]
[342806739,1732143146781,-1617.12,0.00057808,120]
[342806740,1732143146792,-657.08,0.00057808,120]
[342806741,1732143146804,-4865.56,0.00057808,120]
[342806742,1732143146814,-628.07,0.00057808,120]
[342806743,1732143146824,-500.0,0.00057808,120]
[342806744,1732143146834,-500.0,0.00057808,120]
[342806745,1732143146843,-2529.98,0.00057808,120]
[342806746,1732143146855,-635.24,0.00057808,120]
[342806747,1732143146866,-750.97,0.00057808,120]
[342806748,1732143146876,-1761.11,0.00057808,120]
[342806749,1732143146886,-588.38320212,0.00057808,120]
[342806750,1732143146896,-624.76,0.00057808,120]
[342806751,1732143146910,-500.0,0.00057808,120]
[342806752,1732143146920,-46265.17,0.00057808,120]
[342806753,1732143146931,-500.0,0.00057808,120]
[342806754,1732143146943,-644.52,0.00057808,120]
[342806755,1732143146954,-880.93,0.00057808,120]
[342806756,1732143146964,-500.0,0.00057808,120]
[342806757,1732143146974,-4390.12,0.00057808,120]
[342806758,1732143146986,-500.0,0.00057808,120]
[342806759,1732143146997,-3641.91,0.00057808,120]
[342806760,1732143147006,-500.0,0.00057808,120]
[342806761,1732143147015,-2046.77,0.00057808,120]
[342806762,1732143147025,-500.0,0.00057808,120]
[342806763,1732143147036,-519.31,0.00057808,120]
[342806764,1732143147046,-1582.94,0.00057808,120]
[342806765,1732143147055,-1566.08,0.00057808,120]
[342806766,1732143147066,-1540.18,0.00057808,120]
[342806767,1732143147076,-500.0,0.00057808,120]
[342806768,1732143147086,-32182.96,0.00057808,120]
[342806769,1732143147096,-2395.44,0.00057808,120]
[342806770,1732143147105,-500.0,0.00057808,120]
[342806771,1732143147115,-500.0,0.00057808,120]
[342806772,1732143147126,-774.88,0.00057808,120]
[342806773,1732143147136,-503.83440636,0.00057808,120]
[342806774,1732143147146,-500.0,0.00057808,120]
[342806775,1732143147156,-500.0,0.00057808,120]
[342806776,1732143147166,-3018.97,0.00057808,120]
[342806777,1732143147175,-1221.56,0.00057808,120]
[342806778,1732143147185,-949.33,0.00057808,120]
[342806779,1732143147197,-500.0,0.00057808,120]
[342806780,1732143147207,-500.0,0.00057808,120]
[342806781,1732143147334,-512.47,0.00057808,120]
[342806782,1732143147345,-500.0,0.00057808,120]
[342806783,1732143147355,-975.73,0.00057808,120]
[342806784,1732143147365,-500.0,0.00057808,120]
[342806785,1732143147375,-1680.87,0.00057808,120]
[342806786,1732143147384,-2068.97,0.00057808,120]
[342806787,1732143147395,-509.92,0.00057808,120]
[342806788,1732143147406,-2386.08,0.00057808,120]
[342806789,1732143147416,-850.0,0.00057808,120]
[342806790,1732143147427,-2587.78,0.00057808,120]
[342806791,1732143147439,-1481.97,0.00057808,120]
[342806792,1732143147449,-500.0,0.00057808,120]
[342806793,1732143147459,-1478.74,0.00057808,120]
[342806794,1732143147468,-500.0,0.00057808,120]
[342806795,1732143147477,-500.0,0.00057808,120]
[342806796,1732143147487,-580.13,0.00057808,120]
[342806797,1732143147496,-500.0,0.00057808,120]
[342806798,1732143147507,-1753.89,0.00057808,120]
[342806799,1732143147519,-816.51,0.00057808,120]
[342806800,1732143147529,-500.0,0.00057808,120]
[342806801,1732143147539,-10880.09,0.00057808,120]
[342806802,1732143147549,-2245.37,0.00057808,120]
[342806803,1732143147559,-299.64,0.00057808,120]
[342806804,1732143147568,-151.0,0.00057808,120]
[342806805,1732143147579,-500.0,0.00057808,120]
[342806806,1732143147590,-542.24,0.00057808,120]
[342806807,1732143147602,-3622.31,0.00057808,120]
[342806808,1732143147612,-502.6,0.00057808,120]
[342806809,1732143147622,-500.0,0.00057808,120]
[342806810,1732143147632,-500.0,0.00057808,120]
[342806811,1732143147643,-500.0,0.00057808,120]
[342806812,1732143147653,-1317.84,0.00057808,120]
[342806813,1732143147663,-1518.89,0.00057808,90]
[342806814,1732143147675,-151.0,0.00057808,120]
[342806815,1732143147687,-1643.31,0.00057808,120]
[342806816,1732143147697,-1298.63,0.00057808,120]
[342806817,1732143147707,-943.47,0.00057808,120]
[342806818,1732143147716,-500.0,0.00057808,120]
[342806819,1732143147726,-1649.32,0.00057808,120]
[342806820,1732143147737,-550.87,0.00057808,120]
[342806821,1732143147748,-5640.48,0.00057808,120]
[342806822,1732143147758,-2158.9,0.00057808,120]
[342806823,1732143147769,-500.0,0.00057808,120]
[342806824,1732143147780,-1165.26,0.00057808,120]
[342806825,1732143147792,-1244.51,0.00057808,120]
[342806826,1732143147804,-500.0,0.00057808,120]
[342806827,1732143147814,-500.0,0.00057808,120]
[342806828,1732143147826,-500.9256,0.00057808,120]
[342806829,1732143147835,-9870.91,0.00057808,120]
[342806830,1732143147846,-1110.14,0.00057808,120]
[342806831,1732143147857,-986.78,0.00057808,120]
[342806832,1732143147866,-567.02,0.00057808,120]
[342806833,1732143147877,-500.9256,0.00057808,120]
[342806834,1732143147887,-500.0,0.00057808,120]
[342806835,1732143147899,-651.9,0.00057808,120]
[342806836,1732143147913,-500.0,0.00057808,120]
[342806837,1732143147923,-3368.96,0.00057808,120]
[342806838,1732143147935,-6243.58,0.00057808,120]
[342806839,1732143147947,-500.0,0.00057808,120]
[342806840,1732143147956,-1221.81,0.00057808,120]
[342806841,1732143147966,-1021.75,0.00057808,120]
[342806842,1732143147976,-500.0,0.00057808,120]
[342806843,1732143147987,-1378.96,0.00057808,120]
[342806844,1732143147997,-500.0,0.00057808,120]
[342806845,1732143148006,-1402.48,0.00057808,120]
[342806846,1732143148016,-2324.89,0.00057808,120]
[342806847,1732143148026,-1098.99,0.00057808,7]
[342806848,1732143148037,-500.0,0.00057808,120]
[342806849,1732143148047,-581.93,0.00057808,120]
[342806850,1732143148057,-3357.52,0.00057808,120]
[342806851,1732143148066,-151.0,0.00057808,120]
[342806852,1732143148076,-631.52,0.00057808,120]
[342806853,1732143148085,-1503.83,0.00057808,120]
[342806854,1732143148095,-500.0,0.00057808,120]
[342806855,1732143148105,-610.46,0.00057808,120]
[342806856,1732143148116,-500.0,0.00057808,120]
[342806857,1732143148125,-676.3,0.00057808,120]
[342806858,1732143148135,-4485.14,0.00057808,120]
[342806859,1732143148146,-1449.22,0.00057808,120]
[342806860,1732143148156,-802.14,0.00057808,120]
[342806861,1732143148166,-1005.77,0.00057808,120]
[342806862,1732143148176,-62267.29,0.00057808,5]
[342806863,1732143148186,-500.0,0.00057808,120]
[342806864,1732143148195,-500.0,0.00057808,120]
[342806865,1732143148209,-1000.0,0.00057808,120]
[342806866,1732143148219,-384.85540588,0.00057808,120]
[342806867,1732143148229,-1200.11,0.00057808,120]
[342806868,1732143148239,-500.0,0.00057808,120]
[342806869,1732143148248,-4633.73,0.00057808,120]
[342806870,1732143148258,-1462.06,0.00057808,120]
[342806871,1732143148267,-1071.61,0.00057808,120]
[342806872,1732143148276,-1246.53,0.00057808,120]
[342806873,1732143148286,-500.0,0.00057808,120]
[342806874,1732143148295,-665.76,0.00057808,120]
[342806875,1732143148304,-500.0,0.00057808,120]
[342806876,1732143148314,-1619.4,0.00057808,120]
[342806877,1732143148323,-4155.63,0.00057808,120]
[342806878,1732143148333,-534.16,0.00057808,120]
[342806879,1732143148342,-500.0,0.00057808,120]
[342806880,1732143148351,-500.0,0.00057808,120]
[342806881,1732143148360,-716.03,0.00057808,120]
[342806882,1732143148370,-710.7,0.00057808,120]
[342806883,1732143148379,-1328.15,0.00057808,120]
[342806884,1732143148388,-3842.23,0.00057808,120]
[342806885,1732143148399,-1770.4,0.00057808,120]
[342806886,1732143148408,-1828.16,0.00057808,120]
[342806887,1732143148418,-734.2,0.00057808,120]
[342806888,1732143148427,-500.0,0.00057808,120]
[342806889,1732143148436,-4113.57,0.00057808,120]
[342806890,1732143148445,-3361.09,0.00057808,120]
[342806891,1732143148456,-2336.41,0.00057808,120]
[342806892,1732143148466,-914.26,0.00057808,120]
[342806893,1732143148476,-1225.66,0.00057808,120]
[342806894,1732143148485,-2227.59,0.00057808,120]
[342806895,1732143148495,-1199.34,0.00057808,120]
[342806896,1732143148505,-500.0,0.00057808,120]
[342806897,1732143148518,-818.4,0.00057808,120]
[342806898,1732143148528,-945.67,0.00057808,120]
[342806899,1732143148538,-4656.57,0.00057808,120]
[342806900,1732143148548,-656.2,0.00057808,120]
[342806901,1732143148557,-1601.15,0.00057808,120]
[342806902,1732143148567,-2590.51,0.00057808,120]
[342806903,1732143148576,-500.0,0.00057808,120]
[342806904,1732143148586,-500.0,0.00057808,120]
[342806905,1732143148596,-617.4,0.00057808,120]
[342806906,1732143148606,-1087.48,0.00057808,120]
[342806907,1732143148615,-500.0,0.00057808,120]
[342806908,1732143148625,-500.0,0.00057808,120]
[342806909,1732143148634,-1021.22,0.00057808,120]
[342806910,1732143148644,-500.0,0.00057808,120]
[342806911,1732143148655,-530.21,0.00057808,120]
[342806912,1732143148665,-4078.12,0.00057808,120]
[342806913,1732143148676,-609.85,0.00057808,120]
[342806914,1732143148686,-1271.08,0.00057808,120]
[342806915,1732143148695,-630.13,0.00057808,120]
[342806916,1732143148705,-1053.42,0.00057808,120]
[342806917,1732143148715,-868.75,0.00057808,120]
[342806918,1732143148726,-10737.37,0.00057808,21]
[342806919,1732143148736,-3054.48,0.00057808,120]
[342806920,1732143148747,-772.0,0.00057808,120]
[342806921,1732143148757,-1615.7,0.00057808,120]
[342806922,1732143148767,-790.82,0.00057808,120]
[342806923,1732143148776,-500.0,0.00057808,120]
[342806924,1732143148786,-188.45,0.00057808,120]
[342806925,1732143148796,-2780.77,0.00057808,120]
[342806926,1732143148806,-500.0,0.00057808,120]
[342806927,1732143148815,-3170.06,0.00057808,120]
[342806928,1732143148824,-530.51,0.00057808,120]
[342806929,1732143148835,-500.0,0.00057808,120]
[342806930,1732143148847,-814.28,0.00057808,120]
[342806931,1732143148856,-500.0,0.00057808,120]
[342806932,1732143148866,-500.0,0.00057808,120]
[342806933,1732143148875,-500.0,0.00057808,120]
[342806934,1732143148886,-1053.94,0.00057808,120]
[342806935,1732143148898,-832.21,0.00057808,120]
[342806936,1732143148912,-500.0,0.00057808,120]
[342806937,1732143148922,-559.12,0.00057808,120]
[342806938,1732143148932,-500.0,0.00057808,120]
[342806939,1732143148943,-962.23,0.00057808,120]
[342806940,1732143148954,-4610.65,0.00057808,120]
[342806941,1732143148963,-500.0,0.00057808,120]
[342806942,1732143148972,-630.95,0.00057808,120]
[342806943,1732143148985,-7093.52,0.00057808,120]
[342806944,1732143148995,-1497.99,0.00057808,120]
[342806945,1732143149005,-3030.53,0.00057808,120]
[342806946,1732143149015,-2002.76,0.00057808,120]
[342806947,1732143149024,-4996.62,0.00057808,120]
[342806948,1732143149034,-1038.47,0.00057808,120]
[342806949,1732143149044,-3755.03,0.00057808,120]
[342806950,1732143149054,-500.0,0.00057808,120]
[342806951,1732143149063,-500.33,0.00057808,120]
[342806952,1732143149073,-619.43,0.00057808,120]
[342806953,1732143149083,-1395.84,0.00057808,120]
[342806954,1732143149093,-6717.87,0.00057808,120]
[342806955,1732143149103,-4210.05,0.00057808,120]
[342806956,1732143149113,-500.0,0.00057808,120]
[342806957,1732143149123,-4619.32,0.00057808,120]
[342806958,1732143149134,-2125.56,0.00057808,120]
[342806959,1732143149144,-500.0,0.00057808,120]
[342806960,1732143149155,-1522.48,0.00057808,120]
[342806961,1732143149165,-500.0,0.00057808,120]
[342806962,1732143149175,-2913.49,0.00057808,120]
[342806963,1732143149185,-500.0,0.00057808,120]
[342806964,1732143149195,-500.0,0.00057808,120]
[342806965,1732143149206,-6408.58,0.00057808,60]
[342806966,1732143149215,-163.746603,0.00057808,120]
[342806967,1732143149225,-8536.13,0.00057808,120]
[342806968,1732143149234,-500.0,0.00057808,120]
[342806969,1732143149244,-931.52,0.00057808,120]
[342806970,1732143149253,-5185.83,0.00057808,120]
[342806971,1732143149263,-873.24,0.00057808,120]
[342806972,1732143149582,-500.0,0.00057808,120]
[342806973,1732143149594,-163.746603,0.00057808,120]
[342806974,1732143149604,-1838.8,0.00057808,120]
[342806975,1732143149614,-500.0,0.00057808,120]
[342806976,1732143149623,-1525.45,0.00057808,120]
[342806977,1732143149632,-1373.0,0.00057808,120]
[342806978,1732143149643,-1659.86,0.00057808,120]
[342806979,1732143149658,-500.0,0.00057808,120]
[342806980,1732143149669,-500.0,0.00057808,120]
[342806981,1732143149679,-5907.77,0.00057808,120]
[342806982,1732143149688,-647.02,0.00057808,120]
[342806983,1732143149698,-1210.69,0.00057808,120]
[342806984,1732143149716,-526.64,0.00057808,120]
[342806985,1732143149726,-500.0,0.00057808,120]
[342806986,1732143149736,-12504.89,0.00057808,120]
[342806987,1732143149746,-1181.36,0.00057808,120]
[342806988,1732143149755,-2076.98,0.00057808,120]
[342806989,1732143149765,-677.21,0.00057808,120]
[342806990,1732143149775,-2434.04,0.00057808,120]
[342806991,1732143149785,-1109.03,0.00057808,120]
[342806992,1732143149795,-151.0,0.00057808,30]
[342806993,1732143149805,-1099.32,0.00057808,120]
[342806994,1732143149815,-151.0,0.00057808,120]
[342806995,1732143149825,-4681.73,0.00057808,120]
[342806996,1732143149834,-651.95,0.00057808,120]
[342806997,1732143149844,-1502.22,0.00057808,120]
[342806998,1732143149856,-757.95,0.00057808,120]
[342806999,1732143149866,-986.66,0.00057808,120]
[342807000,1732143149878,-880.48,0.00057808,120]
[342807001,1732143149888,-294.0245704,0.00057808,120]
[342807002,1732143149901,-500.0,0.00057808,120]
[342807003,1732143149918,-151.0,0.00057808,120]
[342807004,1732143149931,-1166.87,0.00057808,120]
[342807005,1732143149942,-1450.31,0.00057808,120]
[342807006,1732143149954,-2144.4,0.00057808,120]
[342807007,1732143149964,-548.14,0.00057808,120]
[342807008,1732143149975,-1032.14,0.00057808,120]
[342807009,1732143149985,-14474.38,0.00057808,120]
[342807010,1732143149996,-16729.96,0.00057808,120]
[342807011,1732143150007,-500.0,0.00057808,120]
[342807012,1732143150018,-548.7528787,0.00057808,120]
[342807013,1732143150028,-500.0,0.00057808,120]
[342807014,1732143150038,-533.88,0.00057808,120]
[342807015,1732143150048,-2375.8,0.00057808,120]